bitfinex/quotes_SOLUSD_20251216
["timestamp","ask_amount","ask_price","bid_price","bid_amount"]
[1765886626364,8.4832634,128.82,128.8,8.80994492]
[1765886626755,8.4832634,128.82,128.8,9.47994492]
[1765886626961,8.4832634,128.82,128.8,8.80994492]
[1765886627593,8.5,128.81,128.8,8.80994492]
[1765886629192,16.2633724,128.81,128.8,8.80994492]
[1765886630379,8.5,128.81,128.8,9.47994492]
[1765886630581,8.5,128.81,128.8,8.80994492]
[1765886630757,16.2633724,128.81,128.8,8.80994492]
[1765886632472,16.9833724,128.81,128.8,8.80994492]
[1765886633195,16.2633724,128.81,128.79,9.47994492]
[1765886633599,16.2633724,128.81,128.79,12.25821545]
[1765886634073,8.5,128.81,128.8,0.67]
[1765886634395,8.5,128.81,128.8,3.44827053]
[1765886634584,8.5,128.83,128.82,9.47994492]
[1765886634784,8.5,128.83,128.82,12.25821545]
[1765886635588,8.5,128.83,128.82,8.80994492]
[1765886637603,16.26119597,128.85,128.84,8.80994492]
[1765886637803,16.26119597,128.85,128.84,11.58821545]
[1765886638606,16.98119597,128.85,128.84,8.80994492]
[1765886638790,19.7594665,128.85,128.84,8.80994492]
[1765886639108,16.98119597,128.85,128.84,8.80994492]
[1765886639700,0.72,128.84,128.82,8.80994492]
[1765886639884,9.22,128.83,128.82,8.80994492]
[1765886640806,0.72,128.82,128.78,13.7170912]
[1765886641107,8.5,128.81,128.8,12.25821545]
[1765886641276,0.72,128.84,128.8,12.25821545]
[1765886641483,0.72,128.84,128.79,7.76442805]
[1765886641484,8.5,128.83,128.82,9.47994492]
[1765886641684,8.5,128.83,128.82,12.25821545]
[1765886641886,7.76092544,128.86,128.83,8.80994492]
[1765886642090,7.76092544,128.86,128.85,8.80994492]
[1765886642283,16.26092544,128.86,128.85,8.80994492]
[1765886643009,16.26092544,128.86,128.83,2.77827053]
[1765886643010,0.72,128.85,128.83,8.80994492]
[1765886643185,16.98092544,128.86,128.83,9.47994492]
[1765886643895,16.98092544,128.86,128.83,12.25951888]
[1765886645730,8.5,128.86,128.85,3.49957396]
[1765886646724,8.5,128.86,128.84,3.49957396]
[1765886646907,8.5,128.86,128.85,0.72]
[1765886647113,8.5,128.86,128.85,3.49957396]
[1765886647312,8.5,128.86,128.85,0.72]
[1765886647493,8.5,128.86,128.85,3.49957396]
[1765886650911,8.5,128.86,128.85,0.72]
[1765886651113,8.5,128.86,128.85,3.49957396]
[1765886651827,8.5,128.86,128.85,2.77957396]
[1765886651996,8.5,128.86,128.85,12.30951888]
[1765886654037,16.94036008,128.86,128.85,8.80994492]
[1765886654403,16.94036008,128.86,128.81,13.7670912]
[1765886654404,0.68,128.85,128.81,0.72]
[1765886654602,0.68,128.85,128.82,8.80994492]
[1765886655229,0.68,128.84,128.81,8.80994492]
[1765886655430,16.262194,128.83,128.81,8.80994492]
[1765886655635,16.262194,128.83,128.81,9.52994492]
[1765886655821,16.262194,128.83,128.81,12.30951888]
[1765886657640,8.5,128.83,128.82,0.72]
[1765886657815,8.5,128.83,128.82,3.49957396]
[1765886658325,8.5,128.83,128.82,2.77957396]
[1765886658524,8.5,128.83,128.81,12.30951888]
[1765886658905,8.5,128.83,128.82,2.77957396]
[1765886660139,19.39848349,128.88,128.82,2.77957396]
[1765886660343,16.25975789,128.87,128.85,12.30951888]
[1765886660641,0.68,128.86,128.84,8.80994492]
[1765886662033,7.76096235,128.85,128.82,8.80994492]
[1765886662339,9.18,128.84,128.82,11.58951888]
[1765886663123,8.5,128.84,128.83,12.30951888]
[1765886663740,9.18,128.84,128.83,8.80994492]
[1765886664123,16.94156473,128.84,128.83,8.80994492]
[1765886666370,0.68,128.83,128.79,0.72]
[1765886666672,0.68,128.83,128.8,8.80994492]
[1765886667253,0.68,128.83,128.8,12.30951888]
[1765886668138,7.76276975,128.82,128.8,9.52994492]
[1765886668438,7.76276975,128.82,128.8,12.30951888]
[1765886669146,16.26276975,128.82,128.8,12.30951888]
[1765886669458,8.5,128.82,128.81,12.30951888]
[1765886669754,8.5,128.82,128.81,8.80994492]
[1765886671156,20.08128546,128.86,128.83,0.72]
[1765886671336,8.5,128.84,128.83,12.30951888]
[1765886671742,8.5,128.84,128.83,9.52994492]
[1765886672053,8.5,128.84,128.83,12.30951888]
[1765886672852,7.75990136,128.87,128.85,0.72]
[1765886673029,8.5,128.86,128.85,9.52994492]
[1765886673231,8.5,128.88,128.87,9.52994492]
[1765886674033,8.5,128.88,128.87,13.86908128]
[1765886675661,8.5,128.91,128.89,0.66]
[1765886675826,8.5,128.91,128.9,4.33913636]
[1765886676333,8.5,128.91,128.89,4.99913636]
[1765886677975,16.25749465,128.91,128.89,4.33913636]
[1765886678872,8.5,128.91,128.89,4.33913636]
[1765886679074,9.18,128.91,128.89,4.33913636]
[1765886679473,8.5,128.91,128.89,4.33913636]
[1765886679675,8.5,128.91,128.89,4.99913636]
[1765886679881,16.93740276,128.91,128.88,9.46994492]
[1765886680089,8.5,128.91,128.9,13.14908128]
[1765886680261,8.5,128.91,128.9,13.80908128]
[1765886680574,7.85557469,128.94,128.92,0.66]
[1765886680747,16.35557469,128.94,128.92,4.99913636]
[1765886681379,8.6,128.94,128.93,13.14908128]
[1765886681875,8.6,128.94,128.93,13.80908128]
[1765886682206,0.1,128.94,128.93,13.80908128]
[1765886682383,0.1,128.94,128.93,25.90436438]
[1765886682581,0.1,128.95,128.94,9.46994492]
[1765886682780,0.1,128.95,128.94,18.14821764]
[1765886684405,0.1,128.95,128.94,25.90376285]
[1765886684611,0.1,128.95,128.94,34.40376285]
[1765886687521,0.1,128.95,128.94,96.30376285]
[1765886688014,0.1,128.97,128.96,26.85617248]
[1765886688306,0.1,128.97,128.96,88.75617248]
[1765886688711,0.1,128.97,128.96,96.51051491]
[1765886688915,0.1,128.97,128.96,92.17137855]
[1765886689098,0.1,128.97,128.96,75.04908128]
[1765886690110,0.1,128.97,128.96,70.70994492]
[1765886691289,0.78,128.97,128.96,70.70994492]
[1765886692629,8.53374118,128.97,128.96,70.70994492]
[1765886692910,0.1,128.97,128.96,9.46994492]
[1765886693086,0.1,128.97,128.96,13.80908128]
[1765886693709,0.78,128.97,128.96,8.80994492]
[1765886693883,8.53374118,128.97,128.96,8.80994492]
[1765886695619,0.78,128.97,128.96,8.80994492]
[1765886696941,8.53374118,128.97,128.96,8.80994492]
[1765886697432,0.78,128.97,128.96,8.80994492]
[1765886698640,0.1,128.97,128.96,8.80994492]
[1765886699405,0.1,128.97,128.96,13.80908128]
[1765886699799,0.1,128.97,128.96,21.56342371]
[1765886700108,0.1,128.97,128.96,83.46342371]
[1765886700606,0.1,128.97,128.96,70.70994492]
[1765886700801,0.1,128.97,128.96,13.14908128]
[1765886701225,0.1,128.97,128.96,13.80908128]
[1765886701413,0.1,128.97,128.96,21.56342371]
[1765886703214,0.1,128.97,128.96,8.80994492]
[1765886704746,0.81,128.97,128.96,8.80994492]
[1765886707381,0.1,128.97,128.96,9.49994492]
[1765886707678,0.1,128.97,128.96,13.83908128]
[1765886708173,0.1,128.97,128.96,21.59342371]
[1765886708461,0.1,129.0,128.96,21.59342371]
[1765886708462,0.1,129.0,128.98,21.85703612]
[1765886708630,0.1,129.0,128.99,18.17821764]
[1765886709542,0.1,129.0,128.99,25.93075659]
[1765886709865,0.1,129.0,128.99,21.59162023]
[1765886710229,0.1,129.0,128.99,8.80994492]
[1765886710632,0.1,129.0,128.99,13.14908128]
[1765886710966,0.1,129.0,128.98,13.14908128]
[1765886711349,0.1,129.0,128.99,8.80994492]
[1765886711753,0.1,129.0,128.99,4.33227833]
[1765886712462,0.81,129.0,128.99,4.33227833]
[1765886712769,0.1,129.0,128.99,4.33227833]
[1765886713143,0.81,129.0,128.97,13.14222325]
[1765886713370,0.81,129.0,128.98,4.33227833]
[1765886713775,8.56208485,129.0,128.98,4.33227833]
[1765886714772,8.56208485,129.0,128.97,70.70994492]
[1765886714968,8.56208485,129.0,128.96,21.49140866]
[1765886714969,0.71,128.99,128.96,8.80994492]
[1765886715660,7.75314002,128.98,128.96,8.80994492]
[1765886715883,8.46314002,128.98,128.96,8.80994492]
[1765886717495,16.96314002,128.98,128.96,8.80994492]
[1765886717868,16.96314002,128.98,128.94,0.69]
[1765886718062,0.71,128.97,128.95,8.80994492]
[1765886718962,16.96314002,128.98,128.95,5.02227833]
[1765886719168,16.25314002,128.98,128.96,4.33227833]
[1765886719653,16.96314002,128.98,128.96,4.33227833]
[1765886719859,16.25314002,128.98,128.96,4.33227833]
[1765886720769,16.96314002,128.98,128.96,4.33227833]
[1765886722792,0.71,128.95,128.9,16.56538161]
[1765886723086,0.71,128.91,128.86,4.33227833]
[1765886723288,0.71,128.9,128.86,4.33227833]
[1765886723491,0.71,128.9,128.86,12.78255673]
[1765886723695,0.71,128.9,128.87,4.33227833]
[1765886724064,0.71,128.9,128.86,12.09255673]
[1765886724797,0.71,128.89,128.86,4.33227833]
[1765886724972,0.71,128.89,128.87,8.80994492]
[1765886725179,0.71,128.89,128.86,8.80994492]
[1765886725373,0.71,128.89,128.85,25.14047102]
[1765886725579,0.71,128.89,128.86,8.80994492]
[1765886725788,0.71,128.88,128.86,8.80994492]
[1765886725966,8.5,128.87,128.85,8.80994492]
[1765886726168,0.71,128.86,128.85,8.80994492]
[1765886726893,0.71,128.86,128.84,8.80994492]
[1765886729089,0.71,128.86,128.84,70.70994492]
[1765886733105,8.47053437,128.86,128.84,70.70994492]
[1765886733474,8.47053437,128.86,128.84,8.80994492]
[1765886734187,0.68,128.85,128.83,8.80994492]
[1765886735199,8.4409671,128.85,128.83,8.80994492]
[1765886736299,16.26019653,128.87,128.84,7.44551647]
[1765886736472,16.94019653,128.87,128.83,8.80994492]
[1765886736677,0.68,128.86,128.83,16.95546139]
[1765886737618,0.68,128.85,128.83,8.80994492]
[1765886737980,8.44036972,128.86,128.83,8.80994492]
[1765886738180,0.68,128.85,128.83,8.80994492]
[1765886739204,8.44036972,128.86,128.83,16.95546139]
[1765886739384,0.68,128.85,128.83,8.80994492]
[1765886739891,8.44036972,128.86,128.83,16.25546139]
[1765886740086,0.68,128.86,128.83,24.01757978]
[1765886740286,0.68,128.86,128.84,7.44551647]
[1765886740488,0.68,128.85,128.83,16.25546139]
[1765886740880,8.44036077,128.86,128.83,16.25546139]
[1765886741082,0.68,128.86,128.84,7.44551647]
[1765886741685,8.44041048,128.86,128.83,8.80994492]
[1765886741910,8.44041048,128.86,128.84,7.44551647]
[1765886742184,0.68,128.86,128.84,7.44551647]
[1765886742585,8.5,128.86,128.85,8.14551647]
[1765886743485,8.5,128.86,128.85,7.44551647]
[1765886743710,8.5,128.86,128.85,16.25546139]
[1765886744112,9.18,128.88,128.86,8.80994492]
[1765886744615,0.68,128.87,128.86,8.80994492]
[1765886745687,8.5,128.88,128.86,16.95546139]
[1765886745909,8.5,128.88,128.87,16.95546139]
[1765886747117,9.18,128.88,128.87,8.80994492]
[1765886747317,0.68,128.87,128.83,7.44551647]
[1765886747515,16.9391558,128.88,128.86,8.80994492]
[1765886749299,8.43976749,128.87,128.85,8.80994492]
[1765886749620,8.43976749,128.87,128.84,2.77921391]
[1765886749821,0.68,128.86,128.84,8.80994492]
[1765886751386,7.75976749,128.87,128.83,2.77921391]
[1765886751592,0.68,128.85,128.83,8.80994492]
[1765886751795,0.68,128.84,128.83,8.80994492]
[1765886752518,8.5,128.85,128.83,12.28915883]
[1765886752818,8.5,128.85,128.83,20.05108747]
[1765886753720,8.5,128.85,128.83,16.57187356]
[1765886753923,0.68,128.84,128.83,8.80994492]
[1765886755804,0.68,128.84,128.82,9.00994492]
[1765886756026,8.44188245,128.84,128.82,0.2]
[1765886757324,7.76188245,128.84,128.82,0.2]
[1765886757535,8.44188245,128.84,128.82,0.2]
[1765886757734,0.68,128.83,128.82,0.2]
[1765886758250,16.941156,128.85,128.82,2.97921391]
[1765886758421,16.941156,128.85,128.82,0.2]
[1765886758748,16.941156,128.85,128.82,2.97921391]
[1765886759450,0.68,128.84,128.82,2.97921391]
[1765886759750,16.941156,128.85,128.82,2.97921391]
[1765886761247,8.5,128.85,128.83,3.47921391]
[1765886761548,0.68,128.83,128.82,0.2]
[1765886761721,0.68,128.82,128.78,8.80994492]
[1765886761921,0.68,128.79,128.78,8.80994492]
[1765886762222,0.68,128.79,128.75,3.47921391]
[1765886762421,8.5,128.78,128.74,13.0470912]
[1765886762649,0.68,128.77,128.74,16.52630511]
[1765886762855,9.18,128.78,128.75,11.58915883]
[1765886763351,8.5,128.78,128.76,2.77921391]
[1765886763731,8.5,128.79,128.78,8.80994492]
[1765886764344,8.48297973,128.82,128.78,12.28915883]
[1765886764652,9.22,128.81,128.78,12.28915883]
[1765886765436,16.98344743,128.81,128.78,16.96003728]
[1765886766654,16.26344743,128.81,128.79,7.45009236]
[1765886767069,16.26344743,128.81,128.78,16.96003728]
[1765886767226,16.98344743,128.81,128.78,8.80994492]
[1765886767431,0.72,128.79,128.76,8.80994492]
[1765886767647,8.5,128.78,128.76,8.80994492]
[1765886767851,9.22,128.78,128.76,8.80994492]
[1765886768548,9.22,128.78,128.76,16.26003728]
[1765886768860,0.72,128.77,128.76,8.80994492]
[1765886771457,16.98534546,128.78,128.76,7.45009236]
[1765886771639,16.98534546,128.78,128.75,16.26003728]
[1765886772150,0.72,128.77,128.75,16.26003728]
[1765886774967,16.98534546,128.78,128.75,16.26003728]
[1765886775642,0.72,128.77,128.76,7.45009236]
[1765886776058,0.72,128.77,128.75,16.26003728]
[1765886776342,16.26534546,128.78,128.75,16.26003728]
[1765886777845,35.67829778,128.78,128.73,8.80994492]
[1765886778061,35.67829778,128.78,128.75,8.80994492]
[1765886778237,0.72,128.77,128.75,8.80994492]
[1765886779166,16.26534546,128.78,128.77,8.80994492]
[1765886781064,8.48476498,128.79,128.77,8.80994492]
[1765886781371,8.52,128.78,128.77,16.96269916]
[1765886781668,8.52,128.79,128.77,16.96269916]
[1765886782441,8.52,128.79,128.78,9.50994492]
[1765886782954,8.52,128.79,128.78,16.96269916]
[1765886783153,8.52,128.79,128.78,8.80994492]
[1765886784289,8.52,128.79,128.78,9.50994492]
[1765886784468,8.52,128.79,128.78,16.96269916]
[1765886784767,8.52,128.79,128.78,9.50994492]
[1765886784974,8.52,128.79,128.78,16.96269916]
[1765886785971,8.52,128.79,128.78,16.26269916]
[1765886787390,8.52,128.79,128.78,11.59161904]
[1765886787983,0.72,128.83,128.81,8.80994492]
[1765886788290,8.52,128.82,128.81,8.80994492]
[1765886790280,8.48269196,128.83,128.81,8.80994492]
[1765886790584,8.52,128.82,128.81,8.80994492]
[1765886793986,13.7570912,128.86,128.81,11.59161904]
[1765886794278,7.7591558,128.88,128.86,9.52994492]
[1765886794483,8.52,128.89,128.88,9.52994492]
[1765886794654,8.46674837,128.92,128.9,8.80994492]
[1765886794853,8.52,128.91,128.9,11.59161904]
[1765886795454,8.52,128.91,128.9,12.31161904]
[1765886795654,16.27633252,128.93,128.9,11.59161904]
[1765886795855,16.27614674,128.93,128.92,8.80994492]
[1765886796355,0.71,128.92,128.9,2.78167412]
[1765886796556,16.98614674,128.93,128.9,2.78167412]
[1765886796778,16.98614674,128.93,128.91,2.78167412]
[1765886797362,16.98614674,128.93,128.91,4.33757613]
[1765886797689,0.71,128.92,128.9,13.14752105]
[1765886798183,8.46697197,128.92,128.9,13.14752105]
[1765886798573,8.46697197,128.92,128.9,4.33757613]
[1765886799111,16.27628383,128.93,128.92,8.80994492]
[1765886800489,0.71,128.92,128.9,4.33757613]
[1765886800993,0.71,128.92,128.89,75.76752105]
[1765886802061,0.71,128.92,128.9,4.33757613]
[1765886802262,16.98628383,128.93,128.92,8.80994492]
[1765886802986,16.98628383,128.93,128.91,8.80994492]
[1765886803506,16.98628383,128.93,128.9,8.80994492]
[1765886803676,0.71,128.92,128.9,8.80994492]
[1765886803866,16.98628383,128.93,128.9,13.14752105]
[1765886804494,0.71,128.92,128.9,8.80994492]
[1765886805311,8.46706307,128.92,128.9,8.80994492]
[1765886806706,0.71,128.91,128.9,8.80994492]
[1765886807003,9.21,128.91,128.9,8.80994492]
[1765886807392,16.96735008,128.91,128.9,8.80994492]
[1765886811404,8.5,128.91,128.9,5.05757613]
[1765886811713,8.5,128.91,128.9,0.72]
[1765886811884,8.5,128.91,128.89,13.86752105]
[1765886814178,8.5,128.91,128.89,9.52994492]
[1765886814382,8.5,128.91,128.89,13.86752105]
[1765886816996,8.5,128.91,128.89,9.52994492]
[1765886817210,8.5,128.91,128.89,13.86752105]
[1765886817415,0.71,128.9,128.89,8.80994492]
[1765886818204,0.71,128.9,128.87,9.52994492]
[1765886818408,8.5,128.89,128.87,13.86752105]
[1765886819120,0.71,128.88,128.87,8.80994492]
[1765886819524,0.71,128.88,128.86,8.80994492]
[1765886819927,16.25858285,128.89,128.86,13.86752105]
[1765886820138,16.96858285,128.89,128.86,13.86752105]
[1765886820996,19.39119634,128.93,128.89,8.80994492]
[1765886821228,19.39119634,128.93,128.91,8.80994492]
[1765886821229,0.71,128.93,128.91,8.80994492]
[1765886821526,8.5,128.92,128.91,8.80994492]
[1765886821825,0.71,128.91,128.89,8.80994492]
[1765886822194,0.71,128.91,128.88,8.80994492]
[1765886823120,7.7579519,128.9,128.88,8.80994492]
[1765886823616,8.5,128.89,128.88,8.80994492]
[1765886826419,16.2585538,128.89,128.88,8.80994492]
[1765886826727,16.9085538,128.89,128.87,8.80994492]
[1765886826893,8.5,128.89,128.86,8.46023449]
[1765886827097,4.33757613,128.88,128.83,0.7]
[1765886827298,0.65,128.87,128.84,8.80994492]
[1765886827509,16.26055065,128.86,128.84,8.80994492]
[1765886827717,16.26055065,128.86,128.84,9.50994492]
[1765886828143,8.5,128.88,128.87,8.80994492]
[1765886829143,8.5,128.88,128.87,13.84752105]
[1765886829445,8.5,128.88,128.87,13.14752105]
[1765886829636,8.5,128.88,128.87,8.80994492]
[1765886830427,8.5,128.88,128.87,13.14752105]
[1765886830611,8.5,128.88,128.87,8.80994492]
[1765886830816,16.2591558,128.88,128.86,13.84752105]
[1765886831034,8.5,128.88,128.87,5.03757613]
[1765886831209,8.5,128.88,128.87,4.33757613]
[1765886832848,8.5,128.88,128.86,13.84752105]
[1765886833150,16.25920396,128.88,128.86,13.84752105]
[1765886834446,8.5,128.88,128.87,0.7]
[1765886834651,8.5,128.88,128.87,5.03757613]
[1765886835939,8.5,128.88,128.87,0.7]
[1765886836135,8.5,128.88,128.87,5.03757613]
[1765886837276,7.75756479,128.91,128.87,12.09732179]
[1765886837422,20.03964821,128.94,128.92,8.80994492]
[1765886837625,9.15,128.93,128.9,5.03757613]
[1765886838043,16.90614674,128.93,128.9,5.03757613]
[1765886838238,16.90614674,128.93,128.9,0.7]
[1765886838427,16.90614674,128.93,128.9,5.03757613]
[1765886838751,16.25614674,128.93,128.9,5.03757613]
[1765886838953,16.90614674,128.93,128.9,5.03757613]
[1765886839328,16.90614674,128.93,128.91,8.80994492]
[1765886839549,16.90614674,128.93,128.91,4.33757613]
[1765886839737,16.90614674,128.93,128.9,13.84752105]
[1765886840159,16.90614674,128.93,128.91,4.33757613]
[1765886840360,16.90614674,128.93,128.9,13.84752105]
[1765886840534,16.25614674,128.93,128.92,0.7]
[1765886840739,16.25614674,128.93,128.91,0.7]
[1765886841045,16.25614674,128.93,128.9,13.84752105]
[1765886841654,16.25614674,128.93,128.91,4.33757613]
[1765886842441,16.25614674,128.93,128.9,13.84752105]
[1765886842670,16.90614674,128.93,128.9,13.84752105]
[1765886846267,16.25614674,128.93,128.9,8.80994492]
[1765886846473,7.85494377,128.95,128.94,8.80994492]
[1765886846686,17.00494377,128.95,128.94,8.80994492]
[1765886846864,0.65,128.94,128.91,8.80994492]
[1765886847061,0.15,128.94,128.91,8.80994492]
[1765886847276,8.5,128.93,128.91,9.50994492]
[1765886847580,8.5,128.93,128.91,13.84752105]
[1765886848473,8.5,128.93,128.92,5.03757613]
[1765886848652,8.5,128.93,128.92,0.7]
[1765886851178,8.5,128.93,128.91,13.84678673]
[1765886852073,8.5,128.93,128.92,5.03684181]
[1765886853274,8.5,128.93,128.92,0.7]
[1765886854382,16.25634645,128.93,128.91,9.46994492]
[1765886854685,0.65,128.91,128.88,8.80994492]
[1765886854889,8.5,128.9,128.88,8.80994492]
[1765886855255,8.5,128.9,128.88,13.14678673]
[1765886855456,8.5,128.9,128.89,0.66]
[1765886856589,16.90798264,128.9,128.86,0.66]
[1765886856789,0.65,128.89,128.87,8.80994492]
[1765886858167,0.65,128.89,128.86,9.46994492]
[1765886858689,0.65,128.89,128.86,8.80994492]
[1765886859285,0.65,128.87,128.82,8.80994492]
[1765886859462,8.5,128.86,128.84,0.69]
[1765886860383,16.26073987,128.86,128.84,0.69]
[1765886860902,16.91073987,128.86,128.84,8.80994492]
[1765886862096,16.26073987,128.86,128.84,9.49994492]
[1765886862597,0.65,128.85,128.82,8.80994492]
[1765886862901,0.65,128.84,128.82,8.80994492]
[1765886863067,8.5,128.83,128.82,8.80994492]
[1765886864298,8.5,128.83,128.82,3.46928104]
[1765886867809,8.5,128.83,128.82,20.04199571]
[1765886868684,7.76041171,128.86,128.83,9.49994492]
[1765886868890,16.26041171,128.86,128.85,8.80994492]
[1765886869092,16.26041171,128.86,128.85,11.58922596]
[1765886869302,16.26041171,128.86,128.85,8.80994492]
[1765886869921,0.65,128.94,128.86,0.69]
[1765886870121,9.15,128.93,128.9,8.80994492]
[1765886870326,0.65,128.92,128.9,8.80994492]
[1765886870611,9.15,128.93,128.9,12.27922596]
[1765886871612,16.9065748,128.93,128.9,12.27922596]
[1765886871791,16.9065748,128.93,128.92,8.80994492]
[1765886873415,16.9065748,128.93,128.9,3.46928104]
[1765886873599,16.9065748,128.93,128.9,2.77928104]
[1765886873600,8.40706864,128.92,128.9,2.77928104]
[1765886873801,7.75706864,128.92,128.9,2.77928104]
[1765886874115,8.5,128.93,128.91,11.58922596]
[1765886874314,8.5,128.93,128.91,12.27922596]
[1765886874518,16.90620054,128.93,128.91,8.80994492]
[1765886876621,16.90620054,128.93,128.91,2.77928104]
[1765886877305,16.90620054,128.93,128.89,16.56844306]
[1765886877617,16.90620054,128.93,128.91,11.58922596]
[1765886878410,16.90620054,128.93,128.91,8.80994492]
[1765886879006,0.65,128.92,128.91,8.80994492]
[1765886880211,8.40674837,128.92,128.91,8.80994492]
[1765886880427,7.75674837,128.92,128.91,8.80994492]
[1765886881115,8.40674837,128.92,128.91,8.80994492]
[1765886881314,0.65,128.91,128.88,2.77928104]
[1765886881608,7.75674837,128.92,128.89,8.80994492]
[1765886881609,8.5,128.9,128.89,8.80994492]
[1765886883398,0.65,128.89,128.87,8.80994492]
[1765886884230,7.7591558,128.88,128.87,8.80994492]
[1765886885223,0.65,128.87,128.85,8.80994492]
[1765886885423,8.5,128.86,128.85,8.80994492]
[1765886886730,16.26036008,128.86,128.85,8.80994492]
[1765886886930,16.91036008,128.86,128.83,12.30922596]
[1765886887141,35.66126028,128.86,128.83,8.80994492]
[1765886887429,0.65,128.84,128.82,8.80994492]
[1765886887634,8.5,128.83,128.82,8.80994492]
[1765886887843,27.16126028,128.86,128.84,9.52994492]
[1765886887844,7.76036008,128.86,128.84,9.52994492]
[1765886888012,8.5,128.85,128.84,8.80994492]
[1765886888419,8.5,128.85,128.84,2.77928104]
[1765886888620,8.5,128.85,128.84,11.58922596]
[1765886889019,16.26096235,128.85,128.84,8.80994492]
[1765886889227,16.26096235,128.85,128.83,0.72]
[1765886889436,16.26096235,128.85,128.83,8.80994492]
[1765886891138,16.91096235,128.85,128.82,8.80994492]
[1765886891435,0.65,128.84,128.82,8.80994492]
[1765886892443,35.66336824,128.85,128.82,8.80994492]
[1765886892644,39.09264928,128.85,128.82,8.80994492]
[1765886892952,16.26096235,128.85,128.81,2.77928104]
[1765886893130,16.26096235,128.85,128.83,0.72]
[1765886893518,22.17630375,128.89,128.84,12.30922596]
[1765886893719,9.15,128.88,128.86,8.80994492]
[1765886894851,16.9091558,128.88,128.86,8.80994492]
[1765886895544,16.2591558,128.88,128.86,8.80994492]
[1765886895752,16.9091558,128.88,128.86,8.80994492]
[1765886897342,7.7591558,128.88,128.86,9.52994492]
[1765886898250,0.65,128.87,128.84,8.80994492]
[1765886899342,7.76036008,128.86,128.84,8.80994492]
[1765886900261,33.09265449,128.9,128.86,9.52994492]
[1765886900447,35.87193553,128.9,128.86,9.52994492]
[1765886900848,0.65,128.89,128.86,12.30922596]
[1765886901347,8.40968123,128.88,128.86,8.80994492]
[1765886901846,7.75968123,128.88,128.86,8.80994492]
[1765886902736,7.75968123,128.88,128.86,3.49928104]
[1765886903977,7.75871937,128.89,128.88,8.80994492]
[1765886906775,7.75871937,128.89,128.87,8.80994492]
[1765886907364,7.75871937,128.89,128.87,9.52994492]
[1765886910878,7.75871937,128.89,128.88,3.49928104]
[1765886911058,7.75871937,128.89,128.87,2.77928104]
[1765886911256,7.75871937,128.89,128.87,0.72]
[1765886911656,7.75871937,128.89,128.87,3.49928104]
[1765886911953,7.75871937,128.89,128.87,2.77928104]
[1765886912159,7.75735008,128.91,128.9,9.52994492]
[1765886912354,7.75735008,128.91,128.9,8.80994492]
[1765886912778,8.40735008,128.91,128.9,8.80994492]
[1765886913364,7.75735008,128.91,128.9,8.80994492]
[1765886914297,0.65,128.9,128.87,12.28922596]
[1765886914971,27.8007253,128.91,128.89,8.80994492]
[1765886917098,27.8007253,128.91,128.88,0.7]
[1765886917099,8.4085538,128.89,128.86,3.47928104]
[1765886917266,7.7585538,128.89,128.86,12.28922596]
[1765886917466,27.15493831,128.89,128.86,12.28922596]
[1765886917692,27.15493831,128.89,128.86,11.58922596]
[1765886917898,27.15493831,128.89,128.88,8.80994492]
[1765886921174,0.65,128.88,128.86,8.80994492]
[1765886921493,27.80493831,128.89,128.86,9.50994492]
[1765886927280,27.15493831,128.89,128.86,0.7]
[1765886927480,27.15493831,128.89,128.88,8.80994492]
[1765886928685,7.7585538,128.89,128.88,8.80994492]
[1765886930904,0.65,128.88,128.83,4.34035854]
[1765886931082,4.99035854,128.87,128.84,9.50994492]
[1765886932275,7.76036008,128.86,128.84,9.50994492]
[1765886933795,8.41036008,128.86,128.84,8.80994492]
[1765886934010,0.65,128.84,128.83,8.80994492]
[1765886934189,4.99035854,128.85,128.83,8.80994492]
[1765886934505,27.16126028,128.86,128.83,8.80994492]
[1765886934506,27.16126028,128.86,128.83,9.50994492]
[1765886934685,27.81126028,128.86,128.83,9.50994492]
[1765886935077,32.15161882,128.86,128.83,9.50994492]
[1765886940125,4.99035854,128.85,128.83,8.80994492]